fUSD/lending_fUSD_20241219
["ID","MTS","AMOUNT","RATE_DAILY","PERIOD"]
[346005751,1734621040827,-500.0,0.00021917,4]
[346005752,1734621040839,-500.0,0.00021917,4]
[346005753,1734621040850,-500.0,0.00021917,4]
[346005754,1734621040862,-192.84,0.00021917,4]
[346005755,1734621040873,-787.46415024,0.00021917,4]
[346005756,1734621040887,-75.36584976,0.00021917,4]
[346005757,1734621040899,-500.0,0.00021917,4]
[346005758,1734621040909,-559.55,0.00021917,4]
[346005759,1734621040921,-317.29687257,0.00021917,4]
[346005760,1734621040935,-182.70312743,0.00021917,4]
[346005761,1734621040948,-817.31052217,0.00021917,4]
[346005762,1734621040969,-978.84947783,0.00021917,4]
[346005763,1734621040981,-500.0,0.00021917,4]
[346005764,1734621040995,-500.0,0.00021917,4]
[346005765,1734621041007,-578.5,0.00021917,4]
[346005766,1734621041020,-500.0,0.00021917,4]
[346005767,1734621041031,-567.57,0.00021917,4]
[346005768,1734621041042,-500.0,0.00021917,4]
[346005769,1734621041055,-628.76,0.00021917,4]
[346005770,1734621041066,-500.0,0.00021917,4]
[346005771,1734621041077,-500.0,0.00021917,4]
[346005772,1734621041088,-500.0,0.00021917,4]
[346005773,1734621041099,-500.0,0.00021917,4]
[346005774,1734621041109,-500.0,0.00021917,4]
[346005775,1734621041120,-500.0,0.00021917,4]
[346005776,1734621041130,-500.0,0.00021917,4]
[346005777,1734621041141,-500.0,0.00021917,4]
[346005778,1734621041152,-563.56,0.00021917,4]
[346005779,1734621041162,-500.0,0.00021917,4]
[346005780,1734621041173,-500.0,0.00021917,4]
[346005781,1734621041184,-500.0,0.00021917,4]
[346005782,1734621041194,-500.0,0.00021917,4]
[346005783,1734621041205,-500.0,0.00021917,4]
[346005784,1734621041216,-500.0,0.00021917,4]
[346005785,1734621041226,-500.0,0.00021917,4]
[346005786,1734621041238,-870.27,0.00021917,4]
[346005787,1734621041248,-500.0,0.00021917,4]
[346005788,1734621041259,-521.97,0.00021917,4]
[346005789,1734621041269,-512.30999514,0.00021917,4]
[346005790,1734621041281,-500.0,0.00021917,4]
[346005791,1734621041292,-500.0,0.00021917,4]
[346005792,1734621041306,-500.0,0.00021917,4]
[346005793,1734621041317,-500.0,0.00021917,4]
[346005794,1734621041328,-1132.37,0.00021917,4]
[346005795,1734621041341,-500.0,0.00021917,4]
[346005796,1734621041353,-500.0,0.00021917,4]
[346005797,1734621041365,-2724.78,0.00021917,4]
[346005798,1734621041377,-772.38,0.00021917,4]
[346005799,1734621041389,-500.0,0.00021917,4]
[346005800,1734621041401,-500.0,0.00021917,4]
[346005801,1734621041413,-500.0,0.00021917,4]
[346005802,1734621041424,-523.065332,0.00021917,4]
[346005803,1734621041436,-500.0,0.00021917,4]
[346005804,1734621041447,-500.0,0.00021917,4]
[346005805,1734621041458,-500.0,0.00021917,4]
[346005806,1734621041468,-1196.71,0.00021917,4]
[346005807,1734621041478,-766.18,0.00021917,4]
[346005808,1734621041488,-537.67706241,0.00021917,4]
[346005809,1734621041497,-500.0,0.00021917,4]
[346005810,1734621041506,-500.0,0.00021917,4]
[346005811,1734621041516,-500.0,0.00021917,4]
[346005812,1734621041803,-500.0,0.00021917,4]
[346005813,1734621041822,-500.0,0.00021917,4]
[346005814,1734621041835,-500.0,0.00021917,4]
[346005815,1734621041845,-500.0,0.00021917,4]
[346005816,1734621041855,-500.0,0.00021917,4]
[346005817,1734621041864,-162.99015771,0.00021917,4]
[346005818,1734621041873,-500.0,0.00021917,4]
[346005819,1734621041884,-500.0,0.00021917,4]
[346005820,1734621041895,-500.0,0.00021917,4]
[346005821,1734621041904,-638.49,0.00021917,4]
[346005822,1734621041914,-2688.88,0.00021917,4]
[346005823,1734621041924,-500.0,0.00021917,4]
[346005824,1734621041933,-500.0,0.00021917,4]
[346005825,1734621041943,-500.0,0.00021917,4]
[346005826,1734621041953,-500.0,0.00021917,4]
[346005827,1734621041963,-500.0,0.00021917,4]
[346005828,1734621041973,-572.07,0.00021917,4]
[346005829,1734621041983,-500.0,0.00021917,4]
[346005830,1734621041992,-500.0,0.00021917,4]
[346005831,1734621042001,-910.33,0.00021917,4]
[346005832,1734621042010,-500.0,0.00021917,4]
[346005833,1734621042020,-1415.94,0.00021917,4]
[346005834,1734621042029,-1781.02,0.00021917,4]
[346005835,1734621042039,-500.0,0.00021917,4]
[346005836,1734621042050,-500.0,0.00021917,4]
[346005837,1734621042060,-500.0,0.00021917,4]
[346005838,1734621042070,-500.0,0.00021917,4]
[346005839,1734621042080,-500.0,0.00021917,4]
[346005840,1734621042090,-965.51,0.00021917,4]
[346005841,1734621042100,-500.0,0.00021917,4]
[346005842,1734621042109,-500.0,0.00021917,4]
[346005843,1734621042118,-603.09,0.00021917,4]
[346005844,1734621042128,-500.0,0.00021917,4]
[346005845,1734621042137,-954.06,0.00021917,4]
[346005846,1734621042147,-1066.89,0.00021917,4]
[346005847,1734621042157,-500.0,0.00021917,4]
[346005848,1734621042166,-500.0,0.00021917,4]
[346005849,1734621042175,-500.0,0.00021917,4]
[346005850,1734621042184,-543.89,0.00021917,2]
[346005851,1734621042194,-500.0,0.00021917,4]
[346005852,1734621042203,-500.0,0.00021917,4]
[346005853,1734621042213,-685.32,0.00021917,4]
[346005854,1734621042222,-500.0,0.00021917,4]
[346005855,1734621042231,-858.71,0.00021917,4]
[346005856,1734621042241,-500.0,0.00021917,4]
[346005857,1734621042249,-500.0,0.00021917,4]
[346005858,1734621042258,-612.03,0.00021917,4]
[346005859,1734621042268,-500.0,0.00021917,4]
[346005860,1734621042278,-500.0,0.00021917,4]
[346005861,1734621042288,-667.93,0.00021917,4]
[346005862,1734621042299,-500.0,0.00021917,4]
[346005863,1734621042309,-523.59,0.00021917,4]
[346005864,1734621042319,-500.0,0.00021917,4]
[346005865,1734621042328,-500.0,0.00021917,4]
[346005866,1734621042337,-665.58,0.00021917,4]
[346005867,1734621042346,-500.0,0.00021917,4]
[346005868,1734621042355,-500.0,0.00021917,4]
[346005869,1734621042365,-500.0,0.00021917,4]
[346005870,1734621042375,-504.62741582,0.00021917,4]
[346005871,1734621042384,-926.33,0.00021917,4]
[346005872,1734621042394,-500.0,0.00021917,4]
[346005873,1734621042403,-504.14760968,0.00021917,4]
[346005874,1734621042413,-1857.48,0.00021917,4]
[346005875,1734621042422,-500.0,0.00021917,4]
[346005876,1734621042431,-500.0,0.00021917,4]
[346005877,1734621042441,-500.0,0.00021917,4]
[346005878,1734621042451,-500.0,0.00021917,4]
[346005879,1734621042461,-500.0,0.00021917,4]
[346005880,1734621042471,-500.0,0.00021917,4]
[346005881,1734621042481,-837.74,0.00021917,4]
[346005882,1734621042492,-500.0,0.00021917,4]
[346005883,1734621042501,-500.0,0.00021917,4]
[346005884,1734621042512,-420.0,0.00021917,2]
[346005885,1734621042523,-500.0,0.00021917,4]
[346005886,1734621042532,-500.0,0.00021917,4]
[346005887,1734621042543,-500.0,0.00021917,4]
[346005888,1734621042555,-500.0,0.00021917,4]
[346005889,1734621042565,-500.0,0.00021917,4]
[346005890,1734621042576,-500.0,0.00021917,4]
[346005891,1734621042587,-338.33365496,0.00021917,4]
[346005892,1734621042597,-500.0,0.00021917,4]
[346005893,1734621042608,-500.0,0.00021917,4]
[346005894,1734621042619,-500.0,0.00021917,4]
[346005895,1734621042631,-500.0,0.00021917,4]
[346005896,1734621042643,-500.0,0.00021917,4]
[346005897,1734621042654,-1059.6,0.00021917,4]
[346005898,1734621042665,-501.4425418,0.00021917,4]
[346005899,1734621042675,-500.0,0.00021917,4]
[346005900,1734621042688,-744.13,0.00021917,4]
[346005901,1734621042699,-500.0,0.00021917,4]
[346005902,1734621042709,-500.0,0.00021917,4]
[346005903,1734621042720,-500.0,0.00021917,4]
[346005904,1734621042731,-500.0,0.00021917,4]
[346005905,1734621042743,-500.0,0.00021917,4]
[346005907,1734621042753,-500.0,0.00021917,4]
[346005909,1734621042764,-500.0,0.00021917,4]
[346005911,1734621042780,-524.06360205,0.00021917,4]
[346005912,1734621042793,-500.0,0.00021917,4]
[346005913,1734621042814,-500.0,0.00021917,4]
[346005914,1734621042827,-369.6,0.00021917,4]
[346005915,1734621042839,-500.0,0.00021917,4]
[346005916,1734621042852,-314.39922435,0.00021917,4]
[346005918,1734621042862,-505.56565054,0.00021917,4]
[346005919,1734621042872,-500.0,0.00021917,4]
[346005920,1734621042883,-500.0,0.00021917,2]
[346005921,1734621042898,-580.75,0.00021917,4]
[346005923,1734621042909,-500.0,0.00021917,4]
[346005925,1734621042922,-502.82472722,0.00021917,4]
[346005926,1734621042933,-500.0,0.00021917,4]
[346005927,1734621042943,-500.0,0.00021917,4]
[346005928,1734621042953,-500.0,0.00021917,4]
[346005929,1734621042964,-500.0,0.00021917,4]
[346005930,1734621042975,-500.0,0.00021917,4]
[346005931,1734621042987,-500.0,0.00021917,4]
[346005932,1734621042999,-500.0,0.00021917,4]
[346005934,1734621043010,-500.0,0.00021917,4]
[346005935,1734621043021,-500.0,0.00021917,4]
[346005937,1734621043032,-500.0,0.00021917,4]
[346005939,1734621043043,-500.0,0.00021917,4]
[346005941,1734621043060,-500.0,0.00021917,4]
[346005943,1734621043072,-1061.72,0.00021917,4]
[346005945,1734621043083,-500.0,0.00021917,4]
[346005947,1734621043094,-166.13126341,0.00021973,2]
[346005949,1734621043105,-159.86311409,0.00021973,2]
[346005951,1734621043116,-9416.72350887,0.00022056,2]
[346005953,1734621043127,-5035.46570467,0.00022145,2]
[346005955,1734621043137,-202.0,0.0002215,2]
[346005957,1734621043148,-204.0,0.0002215,2]
[346005960,1734621043158,-158.2,0.00022181,2]
[346005963,1734621043169,-438.85133393,0.00022191,4]
[346005966,1734621043180,-506.54,0.00022191,4]
[346005968,1734621043191,-557.87,0.00022191,4]
[346005970,1734621043202,-500.0,0.00022191,4]
[346005972,1734621043212,-500.0,0.00022191,4]
[346005974,1734621043222,-500.0,0.00022191,4]
[346005976,1734621043232,-500.0,0.00022191,4]
[346005978,1734621043243,-227.98540933,0.00022191,4]
[346005980,1734621043253,-500.0,0.00022191,4]
[346005982,1734621043263,-500.0,0.00022191,4]
[346005984,1734621043273,-500.0,0.00022191,4]
[346005986,1734621043283,-533.25,0.00022191,4]
[346005987,1734621043293,-500.0,0.00022191,4]
[346005988,1734621043309,-500.0,0.00022191,4]
[346005989,1734621043319,-500.0,0.00022191,4]
[346005990,1734621043329,-500.0,0.00022191,4]
[346005991,1734621043339,-500.0,0.00022191,4]
[346005992,1734621043348,-500.0,0.00022191,4]
[346005993,1734621043358,-500.0,0.00022191,4]
[346005994,1734621043369,-500.0,0.00022191,4]
[346005995,1734621043379,-500.0,0.00022191,4]
[346005996,1734621043389,-500.0,0.00022191,4]
[346005997,1734621043399,-500.0,0.00022191,4]
[346005998,1734621043408,-500.0,0.00022191,4]
[346005999,1734621043418,-500.0,0.00022191,4]
[346006000,1734621043427,-500.0,0.00022191,4]
[346006001,1734621043437,-500.0,0.00022191,4]
[346006002,1734621043447,-500.0,0.00022191,4]
[346006003,1734621043456,-500.0,0.00022191,4]
[346006004,1734621043466,-500.0,0.00022191,4]
[346006005,1734621043476,-500.0,0.00022191,4]
[346006006,1734621043485,-500.0,0.00022191,4]
[346006007,1734621043495,-500.0,0.00022191,4]
[346006008,1734621043505,-213.54,0.00022191,4]
[346006009,1734621043514,-500.0,0.00022191,4]
[346006011,1734621043524,-500.0,0.00022191,4]
[346006013,1734621043533,-500.0,0.00022191,4]
[346006015,1734621043543,-500.0,0.00022191,4]
[346006017,1734621043556,-500.0,0.00022191,2]
[346006019,1734621043565,-235.42,0.00022191,4]
[346006021,1734621043575,-500.0,0.00022191,4]
[346006023,1734621043584,-500.0,0.00022191,4]
[346006025,1734621043593,-500.0,0.00022191,4]
[346006027,1734621043603,-500.0,0.00022191,4]
[346006029,1734621043613,-500.0,0.00022191,4]
[346006031,1734621043622,-500.0,0.00022191,4]
[346006033,1734621043632,-489.0551646,0.00022191,4]
[346006035,1734621043642,-500.0,0.00022191,4]
[346006037,1734621043652,-500.0,0.00022191,4]
[346006039,1734621043661,-520.83,0.00022191,4]
[346006041,1734621043671,-500.0,0.00022191,4]
[346006043,1734621043679,-500.0,0.00022191,4]
[346006045,1734621043689,-500.0,0.00022191,4]
[346006047,1734621043700,-500.0,0.00022191,4]
[346006049,1734621043711,-500.0,0.00022191,4]
[346006050,1734621043725,-500.0,0.00022191,4]
[346006051,1734621043735,-500.0,0.00022191,4]
[346006053,1734621043745,-500.0,0.00022191,2]
[346006054,1734621043755,-500.0,0.00022191,4]
[346006055,1734621043765,-500.0,0.00022191,4]
[346006056,1734621043778,-500.0,0.00022191,4]
[346006057,1734621043787,-500.0,0.00022191,4]
[346006058,1734621043797,-500.0,0.00022191,4]
[346006059,1734621043810,-500.0,0.00022191,4]
[346006060,1734621043822,-500.0,0.00022191,4]
[346006061,1734621043832,-500.0,0.00022191,4]
[346006062,1734621043843,-283.52,0.00022191,4]
[346006063,1734621043854,-500.0,0.00022191,4]
[346006064,1734621043864,-500.0,0.00022191,4]
[346006065,1734621043875,-500.0,0.00022191,4]
[346006066,1734621043886,-501.90447454,0.00022191,4]
[346006067,1734621043896,-500.0,0.00022191,4]
[346006068,1734621043906,-500.0,0.00022191,4]
[346006069,1734621043916,-500.0,0.00022191,4]
[346006070,1734621043925,-500.0,0.00022191,4]
[346006071,1734621043936,-500.0,0.00022191,4]
[346006072,1734621043949,-500.0,0.00022191,4]
[346006073,1734621043960,-500.0,0.00022191,4]
[346006074,1734621043970,-500.0,0.00022191,4]
[346006075,1734621043980,-500.0,0.00022191,4]
[346006076,1734621043990,-500.0,0.00022191,4]
[346006077,1734621044000,-500.0,0.00022191,4]
[346006078,1734621044009,-862.83,0.00022191,4]
[346006079,1734621044018,-500.0,0.00022191,4]
[346006080,1734621044027,-500.0,0.00022191,4]
[346006081,1734621044037,-1796.16,0.00022191,4]
[346006082,1734621044048,-500.0,0.00022191,4]
[346006083,1734621044058,-500.0,0.00022191,4]
[346006084,1734621044068,-578.5,0.00022191,4]
[346006085,1734621044078,-500.0,0.00022191,4]
[346006086,1734621044088,-500.0,0.00022191,4]
[346006087,1734621044098,-628.76,0.00022191,4]
[346006088,1734621044107,-500.0,0.00022191,4]
[346006089,1734621044117,-500.0,0.00022191,4]
[346006090,1734621044126,-500.0,0.00022191,4]
[346006091,1734621044136,-500.0,0.00022191,4]
[346006092,1734621044145,-500.0,0.00022191,4]
[346006093,1734621044155,-500.0,0.00022191,4]
[346006094,1734621044165,-500.0,0.00022191,4]
[346006095,1734621044174,-563.56,0.00022191,4]
[346006096,1734621044184,-500.0,0.00022191,4]
[346006097,1734621044194,-500.0,0.00022191,4]
[346006098,1734621044204,-500.0,0.00022191,4]
[346006099,1734621044214,-500.0,0.00022191,4]
[346006100,1734621044225,-500.0,0.00022191,4]
[346006101,1734621044235,-500.0,0.00022191,4]
[346006102,1734621044247,-870.27,0.00022191,4]
[346006103,1734621044256,-500.0,0.00022191,4]
[346006104,1734621044267,-521.97,0.00022191,4]
[346006105,1734621044277,-500.0,0.00022191,4]
[346006106,1734621044286,-530.11,0.00022191,4]
[346006107,1734621044297,-500.0,0.00022191,4]
[346006108,1734621044307,-1132.37,0.00022191,4]
[346006109,1734621044317,-285.2,0.00022191,4]
[346006110,1734621044326,-500.0,0.00022191,4]
[346006111,1734621044336,-2724.78,0.00022191,4]
[346006112,1734621044345,-772.38,0.00022191,4]
[346006113,1734621044355,-500.0,0.00022191,4]
[346006114,1734621044364,-500.0,0.00022191,4]
[346006115,1734621044373,-500.0,0.00022191,4]
[346006116,1734621044383,-500.0,0.00022191,4]
[346006117,1734621044393,-500.0,0.00022191,4]
[346006118,1734621044403,-1196.71,0.00022191,4]
[346006119,1734621044414,-766.18,0.00022191,4]
[346006120,1734621044424,-500.0,0.00022191,4]
[346006121,1734621044433,-500.0,0.00022191,4]
[346006122,1734621044443,-500.0,0.00022191,4]
[346006123,1734621044453,-500.0,0.00022191,4]
[346006124,1734621044463,-500.0,0.00022191,4]
[346006125,1734621044473,-500.0,0.00022191,4]
[346006126,1734621044483,-500.0,0.00022191,4]
[346006127,1734621044492,-500.0,0.00022191,4]
[346006128,1734621044502,-500.0,0.00022191,4]
[346006129,1734621044513,-638.49,0.00022191,4]
[346006130,1734621044523,-2688.88,0.00022191,4]
[346006131,1734621044532,-500.0,0.00022191,4]
[346006132,1734621044542,-500.0,0.00022191,4]
[346006133,1734621044555,-500.0,0.00022191,4]
[346006134,1734621044565,-500.0,0.00022191,4]
[346006135,1734621044575,-572.07,0.00022191,4]
[346006136,1734621044584,-354.78000573,0.00022191,4]
[346006137,1734621044594,-910.33,0.00022191,4]
[346006138,1734621044604,-500.0,0.00022191,4]
[346006139,1734621044613,-1415.94,0.00022191,4]
[346006140,1734621044623,-1781.02,0.00022191,4]
[346006141,1734621044632,-500.0,0.00022191,4]
[346006142,1734621044642,-500.0,0.00022191,4]
[346006143,1734621044653,-500.0,0.00022191,4]
[346006144,1734621044662,-500.0,0.00022191,4]
[346006145,1734621044671,-965.51,0.00022191,4]
[346006146,1734621044681,-500.0,0.00022191,4]
[346006147,1734621044691,-603.09,0.00022191,4]
[346006148,1734621044700,-954.06,0.00022191,4]
[346006149,1734621044710,-1066.89,0.00022191,4]
[346006150,1734621044719,-471.1039964,0.00022191,4]
[346006151,1734621044728,-500.0,0.00022191,4]
[346006152,1734621044738,-500.0,0.00022191,4]
[346006153,1734621044747,-685.32,0.00022191,4]
[346006154,1734621044756,-500.0,0.00022191,4]
[346006155,1734621044766,-858.71,0.00022191,4]
[346006156,1734621044780,-500.0,0.00022191,4]
[346006157,1734621044788,-612.03,0.00022191,4]
[346006158,1734621044800,-667.93,0.00022191,4]
[346006159,1734621044812,-500.0,0.00022191,4]
[346006160,1734621044823,-500.0,0.00022191,4]
[346006161,1734621044833,-224.6705028,0.00022191,4]
[346006162,1734621044843,-665.58,0.00022191,4]
[346006163,1734621044852,-500.0,0.00022191,4]
[346006164,1734621044861,-926.33,0.00022191,4]
[346006165,1734621044871,-500.0,0.00022191,4]
[346006166,1734621044881,-1857.48,0.00022191,4]
[346006167,1734621044891,-500.0,0.00022191,4]
[346006168,1734621044901,-500.0,0.00022191,4]
[346006169,1734621044911,-500.0,0.00022191,4]
[346006170,1734621044921,-500.0,0.00022191,4]
[346006171,1734621044931,-837.74,0.00022191,4]
[346006172,1734621044940,-500.0,0.00022191,4]
[346006173,1734621044949,-500.0,0.00022191,4]
[346006174,1734621044959,-500.0,0.00022191,4]
[346006175,1734621044969,-500.0,0.00022191,4]
[346006176,1734621044979,-500.0,0.00022191,4]
[346006177,1734621044989,-500.0,0.00022191,4]
[346006178,1734621044999,-500.0,0.00022191,4]
[346006179,1734621045010,-500.0,0.00022191,4]
[346006180,1734621045020,-500.0,0.00022191,4]
[346006181,1734621045031,-500.0,0.00022191,4]
[346006182,1734621045041,-500.0,0.00022191,4]
[346006183,1734621045055,-1059.6,0.00022191,4]
[346006184,1734621045212,-744.13,0.00022191,4]
[346006185,1734621045223,-500.0,0.00022191,4]
[346006186,1734621045233,-500.0,0.00022191,4]
[346006187,1734621045243,-602.24812004,0.00022191,4]
[346006188,1734621045253,-206.22734203,0.00022191,4]
[346006189,1734621045264,-500.0,0.00022191,4]
[346006190,1734621045273,-500.0,0.00022191,2]
[346006191,1734621045284,-580.75,0.00022191,4]
[346006192,1734621045295,-500.0,0.00022191,4]
[346006193,1734621045306,-500.0,0.00022191,4]
[346006194,1734621045317,-640.5900003,0.00022191,4]
[346006195,1734621045327,-611.91272022,0.00022191,4]
[346006196,1734621045338,-252.41,0.00022191,4]
[346006197,1734621045348,-500.0,0.00022191,4]
[346006198,1734621045365,-500.0,0.00022191,4]
[346006199,1734621045385,-500.0,0.00022191,4]
[346006200,1734621045403,-500.0,0.00022191,4]
[346006201,1734621045413,-500.0,0.00022191,4]
[346006202,1734621045422,-1061.72,0.00022191,4]
[346006203,1734621045432,-491.05,0.00022277,2]
[346006204,1734621045441,-498.6,0.00022277,2]
[346006205,1734621045450,-501.39,0.00022277,2]
[346006206,1734621045459,-491.07,0.00022277,2]
[346006207,1734621045468,-499.32,0.00022277,2]
[346006208,1734621045477,-497.97,0.00022277,2]
[346006209,1734621045486,-492.72,0.00022277,2]
[346006210,1734621045495,-494.51,0.00022277,2]
[346006211,1734621045505,-501.73,0.00022277,2]
[346006212,1734621045514,-503.73,0.00022277,2]
[346006213,1734621045524,-498.95,0.00022277,2]
[346006214,1734621045534,-505.24,0.00022277,2]
[346006215,1734621045543,-491.41,0.00022277,2]
[346006216,1734621045557,-505.57,0.00022277,2]
[346006217,1734621045567,-1264.0,0.00022282,2]
[346006218,1734621045576,-569.775,0.00022282,2]
[346006219,1734621045587,-1896.0,0.00022282,2]
[346006220,1734621045597,-1254.0,0.00022282,2]
[346006221,1734621045607,-817.0,0.00022282,2]
[346006222,1734621045616,-928.0,0.00022282,2]
[346006223,1734621045626,-3766.0,0.00022282,2]
[346006224,1734621045636,-3071.063,0.00022282,2]
[346006225,1734621045646,-535.0,0.00022282,2]
[346006226,1734621045655,-150.0,0.00022315,4]
[346006227,1734621045664,-150.0,0.00022315,4]
[346006228,1734621045674,-9416.72350887,0.00022395,2]
[346006229,1734621045683,-503.55721211,0.00022421,2]
[346006230,1734621045693,-500.0,0.00022421,2]
[346006231,1734621045703,-7500.0,0.00022464,2]
[346006232,1734621045712,-506.54,0.00022465,4]
[346006233,1734621045722,-557.87,0.00022465,4]
[346006234,1734621045732,-500.0,0.00022465,4]
[346006235,1734621045741,-500.0,0.00022465,4]
[346006236,1734621045751,-500.0,0.00022465,4]
[346006237,1734621045760,-589.35163001,0.00022465,4]
[346006238,1734621045771,-500.0,0.00022465,4]
[346006240,1734621045781,-500.0,0.00022465,4]
[346006241,1734621045791,-500.0,0.00022465,4]
[346006242,1734621045804,-500.0,0.00022465,4]
[346006243,1734621045816,-500.0,0.00022465,4]
[346006244,1734621045827,-500.0,0.00022465,4]
[346006245,1734621045836,-500.0,0.00022465,4]
[346006246,1734621045846,-500.0,0.00022465,4]
[346006247,1734621045856,-500.0,0.00022465,4]
[346006248,1734621045866,-500.0,0.00022465,4]
[346006249,1734621045876,-500.0,0.00022465,4]
[346006250,1734621045886,-500.0,0.00022465,4]
[346006251,1734621045900,-500.0,0.00022465,4]
[346006252,1734621045912,-500.0,0.00022465,4]
[346006253,1734621045923,-500.0,0.00022465,4]
[346006254,1734621045935,-500.0,0.00022465,4]
[346006255,1734621045946,-296.26,0.00022465,4]
[346006256,1734621045958,-500.0,0.00022465,4]
[346006257,1734621045968,-500.0,0.00022465,4]
[346006258,1734621045979,-500.0,0.00022465,4]
[346006259,1734621045991,-500.0,0.00022465,4]
[346006260,1734621046003,-500.0,0.00022465,4]
[346006261,1734621046014,-500.0,0.00022465,4]
[346006262,1734621046025,-500.0,0.00022465,4]
[346006263,1734621046038,-500.0,0.00022465,2]
[346006264,1734621046050,-543.99045698,0.00022465,4]
[346006265,1734621046060,-500.0,0.00022465,4]
[346006266,1734621046071,-500.0,0.00022465,4]
[346006267,1734621046082,-500.0,0.00022465,4]
[346006268,1734621046093,-500.0,0.00022465,4]
[346006269,1734621046104,-500.0,0.00022465,4]
[346006270,1734621046115,-500.0,0.00022465,4]
[346006271,1734621046125,-500.0,0.00022465,4]
[346006272,1734621046135,-500.0,0.00022465,4]
[346006273,1734621046145,-500.0,0.00022465,4]
[346006274,1734621046155,-500.0,0.00022465,4]
[346006275,1734621046164,-500.0,0.00022465,4]
[346006276,1734621046175,-500.0,0.00022465,4]
[346006277,1734621046184,-500.0,0.00022465,2]
[346006278,1734621046193,-500.0,0.00022465,4]
[346006279,1734621046204,-500.0,0.00022465,4]
[346006280,1734621046213,-500.0,0.00022465,4]
[346006281,1734621046224,-500.0,0.00022465,4]
[346006282,1734621046235,-500.0,0.00022465,4]
[346006283,1734621046246,-500.0,0.00022465,4]
[346006284,1734621046257,-500.0,0.00022465,4]
[346006285,1734621046267,-368.30583602,0.00022465,4]
[346006286,1734621046278,-500.0,0.00022465,4]
[346006287,1734621046288,-500.0,0.00022465,4]
[346006288,1734621046299,-500.0,0.00022465,4]
[346006289,1734621046309,-500.0,0.00022465,4]
[346006290,1734621046319,-500.0,0.00022465,4]
[346006291,1734621046328,-500.0,0.00022465,4]
[346006292,1734621046338,-251.53,0.00022465,4]
[346006293,1734621046348,-500.0,0.00022465,4]
[346006294,1734621046357,-500.0,0.00022465,4]
[346006295,1734621046367,-500.0,0.00022465,4]
[346006296,1734621046377,-500.0,0.00022465,4]
[346006297,1734621046387,-862.83,0.00022465,4]
[346006298,1734621046397,-500.0,0.00022465,4]
[346006299,1734621046406,-500.0,0.00022465,4]
[346006300,1734621046415,-1796.16,0.00022465,4]
[346006301,1734621046424,-500.0,0.00022465,4]
[346006302,1734621046433,-578.5,0.00022465,4]
[346006303,1734621046443,-628.76,0.00022465,4]
[346006304,1734621046452,-500.0,0.00022465,4]
[346006305,1734621046462,-500.0,0.00022465,4]
[346006306,1734621046471,-500.0,0.00022465,4]